fUSD/lending_fUSD_20260405
["ID","MTS","AMOUNT","RATE_DAILY","PERIOD"]
[419839691,1775410248452,-500.0,0.00015944,2]
[419839692,1775410248462,-11870.0,0.00015945,2]
[419839693,1775410248472,-150.0,0.00015947,2]
[419839694,1775410248481,-150.0,0.00015947,2]
[419839695,1775410248491,-150.0,0.00015958,2]
[419839696,1775410248500,-150.0,0.00015958,2]
[419839697,1775410248509,-3716.00442167,0.0001596,2]
[419839698,1775410248519,-150.0,0.0001596,2]
[419839699,1775410248528,-1000.0,0.00015965,2]
[419839700,1775410248538,-1000.0,0.00015975,2]
[419839701,1775410248548,-500.0,0.00015976,2]
[419839702,1775410248557,-500.0,0.00015976,2]
[419839703,1775410248567,-500.0,0.00015976,2]
[419839704,1775410248576,-500.0,0.00015976,2]
[419839705,1775410248586,-500.0,0.00015976,2]
[419839706,1775410248595,-500.0,0.00015976,2]
[419839707,1775410248605,-500.0,0.00015976,2]
[419839708,1775410248615,-500.0,0.00015976,2]
[419839709,1775410248624,-500.0,0.00015976,2]
[419839710,1775410248634,-500.0,0.00015976,2]
[419839711,1775410248643,-500.0,0.00015976,2]
[419839712,1775410248653,-500.0,0.00015976,2]
[419839713,1775410248662,-150.0,0.00015979,2]
[419839714,1775410248672,-150.0,0.00015981,2]
[419839715,1775410248681,-181.20615998,0.00015984,2]
[419839716,1775410248691,-722.39756678,0.00015984,2]
[419839717,1775410248700,-321.05058728,0.00015984,2]
[419839718,1775410248710,-181.76948971,0.00015984,2]
[419839719,1775410248719,-198.45340073,0.00015984,2]
[419839720,1775410248728,-154.09045178,0.00015984,2]
[419839721,1775410248739,-2046.0,0.00015989,2]
[419839722,1775410248748,-262.0,0.0001599,2]
[419839723,1775410248758,-11422.25541393,0.0001599,2]
[419839724,1775410248767,-242.89978681,0.0001599,2]
[419839725,1775410248777,-242.89978681,0.0001599,2]
[419839726,1775410248787,-350.0,0.00015991,3]
[419839727,1775410248797,-500.0,0.00015996,2]
[419839728,1775410248806,-500.0,0.00015996,2]
[419839729,1775410248816,-249.768226,0.00015997,2]
[419839730,1775410248827,-500.0,0.00015997,2]
[419839731,1775410248837,-500.0,0.00015997,2]
[419839732,1775410248846,-562.90745143,0.00015997,2]
[419839733,1775410248856,-10309.501487,0.00015998,2]
[419839734,1775410248865,-3108.7771077,0.00015998,2]
[419839735,1775410248875,-343952.9980866,0.00015998,2]
[419839736,1775410248884,-666.0,0.00015999,2]
[419839737,1775410248893,-666.0,0.00015999,2]
[419839738,1775410248903,-666.0,0.00015999,2]
[419839739,1775410248912,-666.0,0.00015999,2]
[419839740,1775410248921,-500.0,0.00015999,2]
[419839741,1775410248930,-500.0,0.00015999,2]
[419839742,1775410248940,-500.0,0.00015999,2]
[419839743,1775410248949,-500.0,0.00015999,2]
[419839744,1775410248958,-500.0,0.00015999,2]
[419839745,1775410248968,-500.0,0.00015999,2]
[419839746,1775410248977,-500.0,0.00015999,2]
[419839747,1775410248987,-500.0,0.00015999,2]
[419839748,1775410248996,-500.0,0.00015999,2]
[419839749,1775410249005,-500.0,0.00015999,2]
[419839750,1775410249014,-500.0,0.00015999,2]
[419839751,1775410249024,-500.0,0.00015999,2]
[419839752,1775410249034,-500.0,0.00015999,2]
[419839753,1775410249043,-500.0,0.00015999,2]
[419839754,1775410249052,-500.0,0.00015999,2]
[419839755,1775410249062,-500.0,0.00015999,2]
[419839756,1775410249073,-458.82978926,0.00015999,2]
[419839757,1775410249083,-500.0,0.00015999,2]
[419839758,1775410249093,-500.0,0.00015999,2]
[419839759,1775410249103,-500.0,0.00015999,2]
[419839760,1775410249113,-500.0,0.00015999,2]
[419839761,1775410249124,-500.0,0.00015999,2]
[419839762,1775410249133,-500.0,0.00015999,2]
[419839763,1775410249143,-500.0,0.00015999,2]
[419839764,1775410249152,-500.0,0.00015999,2]
[419839765,1775410249162,-500.0,0.00015999,2]
[419839766,1775410249171,-500.0,0.00015999,2]
[419839767,1775410249180,-428.00397972,0.00015999,2]
[419839768,1775410249189,-500.0,0.00015999,2]
[419839769,1775410249199,-481.06713155,0.00015999,2]
[419839770,1775410249208,-1000.0,0.00015999,2]
[419839771,1775410249217,-1000.0,0.00015999,10]
[419839772,1775410249226,-500.0,0.00015999,2]
[419839773,1775410249236,-500.0,0.00015999,2]
[419839774,1775410249245,-500.0,0.00015999,2]
[419839775,1775410249255,-500.0,0.00015999,2]
[419839776,1775410249264,-500.0,0.00015999,2]
[419839777,1775410249273,-500.0,0.00015999,2]
[419839778,1775410249284,-500.0,0.00015999,2]
[419839779,1775410249293,-500.0,0.00015999,2]
[419839780,1775410249303,-500.0,0.00015999,2]
[419839781,1775410249312,-390.77484076,0.00015999,2]
[419839782,1775410249322,-500.0,0.00015999,2]
[419839783,1775410249331,-500.0,0.00015999,2]
[419839784,1775410249340,-500.0,0.00015999,2]
[419839785,1775410249350,-500.0,0.00015999,2]
[419839786,1775410249359,-500.0,0.00015999,2]
[419839787,1775410249368,-500.0,0.00015999,2]
[419839788,1775410249378,-500.0,0.00015999,2]
[419839789,1775410249388,-420.19790691,0.00015999,2]
[419839790,1775410249398,-500.0,0.00015999,2]
[419839791,1775410249408,-500.0,0.00015999,2]
[419839792,1775410249418,-500.0,0.00015999,2]
[419839793,1775410249427,-500.0,0.00015999,2]
[419839794,1775410249437,-500.0,0.00015999,2]
[419839795,1775410249447,-500.0,0.00015999,2]
[419839796,1775410249456,-234.4698975,0.00015999,2]
[419839797,1775410249465,-500.0,0.00015999,2]
[419839798,1775410249475,-500.0,0.00015999,2]
[419839799,1775410249484,-500.0,0.00015999,2]
[419839800,1775410249494,-500.0,0.00015999,2]
[419839801,1775410249505,-500.0,0.00015999,2]
[419839802,1775410249515,-500.0,0.00015999,2]
[419839803,1775410249525,-500.0,0.00015999,2]
[419839804,1775410249535,-500.0,0.00015999,2]
[419839805,1775410249544,-500.0,0.00015999,2]
[419839806,1775410249554,-500.0,0.00015999,2]
[419839807,1775410249564,-500.0,0.00015999,2]
[419839808,1775410249575,-500.0,0.00015999,2]
[419839809,1775410249585,-500.0,0.00015999,2]
[419839810,1775410249594,-500.0,0.00015999,2]
[419839811,1775410249605,-500.0,0.00015999,2]
[419839812,1775410249615,-500.0,0.00015999,2]
[419839813,1775410249626,-500.0,0.00015999,2]
[419839814,1775410249636,-500.0,0.00015999,2]
[419839815,1775410249647,-184.19958324,0.00015999,2]
[419839816,1775410249656,-500.0,0.00015999,2]
[419839817,1775410249666,-500.0,0.00015999,2]
[419839818,1775410249675,-500.0,0.00015999,2]
[419839819,1775410249685,-500.0,0.00015999,2]
[419839820,1775410249694,-500.0,0.00015999,2]
[419839821,1775410249703,-500.0,0.00015999,2]
[419839822,1775410249712,-500.0,0.00015999,2]
[419839823,1775410249722,-500.0,0.00015999,2]
[419839824,1775410249731,-159.10214758,0.00015999,2]
[419839825,1775410249740,-500.0,0.00015999,2]
[419839826,1775410249750,-500.0,0.00015999,2]
[419839827,1775410249760,-500.0,0.00015999,2]
[419839828,1775410249770,-500.0,0.00015999,2]
[419839829,1775410249780,-500.0,0.00015999,2]
[419839830,1775410249790,-500.0,0.00015999,2]
[419839831,1775410249801,-500.0,0.00015999,2]
[419839832,1775410249811,-500.0,0.00015999,2]
[419839833,1775410249822,-288.67918003,0.00015999,2]
[419839834,1775410249832,-500.0,0.00015999,2]
[419839835,1775410249841,-500.0,0.00015999,2]
[419839836,1775410249852,-500.0,0.00015999,2]
[419839837,1775410249862,-500.0,0.00015999,2]
[419839838,1775410249871,-500.0,0.00015999,2]
[419839839,1775410249881,-500.0,0.00015999,2]
[419839840,1775410249890,-500.0,0.00015999,2]
[419839841,1775410249900,-500.0,0.00015999,2]
[419839842,1775410249909,-500.0,0.00015999,2]
[419839843,1775410249919,-500.0,0.00015999,2]
[419839844,1775410249928,-500.0,0.00015999,2]
[419839845,1775410249938,-500.0,0.00015999,2]
[419839846,1775410249949,-500.0,0.00015999,2]
[419839847,1775410249958,-500.0,0.00015999,2]
[419839848,1775410249967,-447.52950636,0.00015999,2]
[419839849,1775410249976,-500.0,0.00015999,2]
[419839850,1775410249987,-500.0,0.00015999,2]
[419839851,1775410249997,-500.0,0.00015999,2]
[419839852,1775410250007,-500.0,0.00015999,2]
[419839853,1775410250016,-500.0,0.00015999,2]
[419839854,1775410250025,-500.0,0.00015999,2]
[419839855,1775410250035,-500.0,0.00015999,2]
[419839856,1775410250044,-500.0,0.00015999,2]
[419839857,1775410250054,-500.0,0.00015999,2]
[419839858,1775410250064,-500.0,0.00015999,2]
[419839859,1775410250074,-500.0,0.00015999,2]
[419839860,1775410250084,-500.0,0.00015999,2]
[419839861,1775410250093,-500.0,0.00015999,2]
[419839862,1775410250103,-500.0,0.00015999,2]
[419839863,1775410250113,-500.0,0.00015999,2]
[419839864,1775410250122,-500.0,0.00015999,2]
[419839865,1775410250131,-500.0,0.00015999,2]
[419839866,1775410250141,-500.0,0.00015999,2]
[419839867,1775410250150,-541.99648397,0.00015999,2]
[419839868,1775410250160,-150.14541726,0.00016,2]
[419839869,1775410250169,-150.0,0.00016,2]
[419839870,1775410250179,-150.0,0.00016,2]
[419839871,1775410250188,-150.17540857,0.00016,2]
[419839872,1775410250197,-150.00000001,0.00016,2]
[419839873,1775410250207,-150.00000001,0.00016,2]
[419839874,1775410250217,-150.0,0.00016,2]
[419839875,1775410250226,-150.60277619,0.00016,2]
[419839876,1775410250236,-287.38140471,0.00016,2]
[419839877,1775410250246,-267.10584669,0.00016,2]
[419839878,1775410250256,-150.0,0.00016,2]
[419839879,1775410250266,-396414.338676,0.00016,2]
[419839880,1775410252000,-449.3404125,0.00016,2]
[419839881,1775410252039,-390.26603471,0.00016,2]
[419839882,1775410252052,-20197.1028935,0.00016,2]
[419839883,1775410252077,-430.4086241,0.00016,2]
[419839884,1775410252092,-10187.24356323,0.00016,2]
[419839885,1775410252105,-6566.66693677,0.00016,2]
[419839886,1775410252129,-476.51440401,0.00016,2]
[419839887,1775410252666,-150.0,0.00013699,2]
[419839888,1775410252677,-150.0,0.00013973,2]
[419839889,1775410252687,-191.24484675,0.000159,2]
[419839890,1775410252696,-2060655.2342364,0.00016,2]
[419839891,1775410252741,-500.0,0.00016,2]
[419839892,1775410252753,-1347.27935409,0.00016,2]
[419839893,1775410252771,-1652.27519429,0.00016,2]
[419839894,1775410252782,-1134.33505793,0.00016,2]
[419839895,1775410253215,-150.0,0.00014247,2]
[419839896,1775410253224,-3050.0,0.00016,2]
[419839897,1775410253318,-15633.17424791,0.00016,2]
[419839898,1775410253330,-1607.59263891,0.00016,2]
[419839899,1775410253345,-12968.36656502,0.00016,2]
[419839900,1775410253563,-1091.27988049,0.00015288,2]
[419839901,1775410253572,-5452.68052362,0.00016,2]
[419839912,1775410539204,-504.0,0.00013111,2]
[419839916,1775410760347,504.0,0.00013111,2]
[419839918,1775410860583,247.46887375,0.00013,2]
[419839919,1775410860610,2.53112625,0.00013,2]
[419839921,1775411028878,200.0,0.00013037,2]
[419839922,1775411122673,182.82865778,0.00013111,2]
[419839924,1775411431480,-321.17134222,0.00013111,2]
[419839925,1775411431490,-300.0,0.00013111,2]
[419839926,1775411431500,-195.0,0.00013112,2]
[419839927,1775411431511,-317.92534778,0.00013113,2]
[419839928,1775411431530,-282.07465222,0.00013113,2]
[419839929,1775411431540,-1359.00815206,0.00013114,2]
[419839930,1775411431584,-440.80680272,0.00013114,2]
[419839931,1775411431639,-200.18504522,0.00013114,2]
[419839932,1775411431650,-375.99491046,0.00013115,2]
[419839933,1775411431660,-195.0,0.00013127,2]
[419839934,1775411431676,-195.0,0.00013127,2]
[419839935,1775411431687,-195.0,0.00013127,2]
[419839936,1775411431697,-600.0,0.00013155,2]
[419839937,1775411431708,-600.0,0.00013155,2]
[419839938,1775411431718,-166.66,0.00013215,2]
[419839939,1775411431729,-1200.0,0.00013231,2]
[419839940,1775411431739,-300.0,0.00013232,2]
[419839941,1775411431749,-4543.57151006,0.00013233,2]
[419839942,1775411431771,-450.0,0.00013233,2]
[419839946,1775411437674,-474.60848994,0.00013233,2]
[419839947,1775411437684,-3240.0,0.00013425,2]
[419839948,1775411437693,-166.66,0.00013651,2]
[419839949,1775411437702,-150.0,0.00013699,2]
[419839950,1775411437712,-150.0,0.00013699,2]
[419839951,1775411437721,-150.0,0.00013699,2]
[419839952,1775411437731,-150.0,0.00013699,2]
[419839953,1775411437740,-150.0,0.00013699,2]
[419839954,1775411437750,-150.0,0.00013699,2]
[419839955,1775411437759,-157.45,0.00013699,2]
[419839956,1775411437768,-162.49,0.000137,2]
[419839957,1775411437778,-1000.0,0.00013788,2]
[419839958,1775411437787,-8477.48344947,0.000138,2]
[419839959,1775411437796,-150.0,0.00013803,2]
[419839960,1775411437806,-267.272602,0.00013805,2]
[419839961,1775411437815,-1852.42,0.00013827,2]
[419839962,1775411437825,-3306.91,0.00013894,2]
[419839963,1775411437834,-4425.67,0.00013895,2]
[419839964,1775411437843,-166.22790867,0.00013899,2]
[419839965,1775411437853,-500.0,0.00013899,2]
[419839966,1775411437862,-150.0,0.00013899,2]
[419839967,1775411437871,-500.0,0.00013899,2]
[419839968,1775411437881,-500.0,0.00013899,2]
[419839969,1775411437890,-264429.09383394,0.000139,5]
[419839970,1775411437899,-1092.7,0.000139,2]
[419839971,1775411437908,-177.54,0.000139,2]
[419839972,1775411437917,-151.0,0.00013925,2]
[419839973,1775411437927,-151.0,0.00013925,2]
[419839974,1775411437936,-151.0,0.00013925,2]
[419839975,1775411437945,-151.0,0.00013925,2]
[419839976,1775411437955,-151.0,0.00013925,2]
[419839977,1775411437964,-151.0,0.00013925,2]
[419839978,1775411437974,-151.0,0.00013925,2]
[419839979,1775411437983,-151.0,0.00013925,2]
[419839980,1775411437992,-151.0,0.00013925,2]
[419839981,1775411438001,-151.0,0.00013925,2]
[419839982,1775411438010,-151.0,0.00013925,2]
[419839983,1775411438019,-151.0,0.00013925,2]
[419839984,1775411438028,-1600.0,0.00013943,2]
[419839985,1775411438037,-150.0,0.00013973,2]
[419839986,1775411438046,-150.0,0.00013973,2]
[419839987,1775411438056,-150.0,0.00013973,2]
[419839988,1775411438065,-8477.48344941,0.00014033,2]
[419839989,1775411438073,-166.66,0.00014087,2]
[419839990,1775411438082,-11910.15772157,0.00014111,2]
[419839991,1775411438091,-11422.25541393,0.00014115,2]
[419839992,1775411438100,-160.0,0.00014211,2]
[419839993,1775411438109,-504.0,0.00014226,2]
[419839994,1775411438118,-10891.57,0.00014244,2]
[419839995,1775411438127,-150.0,0.00014247,2]
[419839996,1775411438137,-150.0,0.00014247,2]
[419839997,1775411438146,-150.0,0.00014247,2]
[419839998,1775411438155,-8477.48344941,0.00014267,2]
[419839999,1775411438164,-518.71,0.00014314,2]
[419840000,1775411438173,-11910.1577215,0.00014367,2]
[419840001,1775411438182,-150.0,0.000144,2]
[419840002,1775411438192,-150.0,0.000144,2]
[419840003,1775411438201,-150.0,0.000144,2]
[419840004,1775411438209,-150.0,0.000144,2]
[419840005,1775411438218,-150.0,0.000144,2]
[419840006,1775411438227,-150.0,0.000144,2]
[419840007,1775411438237,-150.0,0.000144,2]
[419840008,1775411438247,-150.0,0.000144,2]
[419840009,1775411438258,-150.0,0.000144,2]
[419840010,1775411438266,-150.0,0.000144,2]
[419840011,1775411438275,-150.0,0.000144,2]
[419840012,1775411438284,-150.0,0.000144,2]
[419840013,1775411438293,-150.0,0.000144,2]
[419840014,1775411438302,-150.0,0.000144,2]
[419840015,1775411438311,-150.05716299,0.000144,2]
[419840016,1775411438321,-150.0,0.000144,2]
[419840017,1775411438332,-150.0,0.00014418,2]
[419840018,1775411438343,-600.0,0.00014422,2]
[419840019,1775411438352,-2500.0,0.00014422,2]
[419840020,1775411438361,-2500.0,0.00014422,2]
[419840021,1775411438370,-2500.0,0.00014422,2]
[419840022,1775411438379,-2500.0,0.00014422,2]
[419840023,1775411438388,-2500.0,0.00014422,2]
[419840024,1775411438397,-195.0,0.00014422,2]
[419840025,1775411438405,-600.0,0.00014422,2]
[419840026,1775411438415,-300.0,0.00014422,2]
[419840027,1775411438424,-300.0,0.00014422,2]
[419840028,1775411438433,-300.0,0.00014422,2]
[419840029,1775411438442,-300.0,0.00014422,2]
[419840030,1775411438451,-425.2863973,0.00014422,2]
[419840031,1775411438459,-500.0,0.00014422,2]
[419840032,1775411438468,-500.0,0.00014422,2]
[419840033,1775411438477,-500.0,0.00014422,2]
[419840034,1775411438486,-500.0,0.00014422,2]
[419840035,1775411438495,-595.82296535,0.00014422,2]
[419840036,1775411438504,-250.0,0.00014422,2]
[419840037,1775411438513,-300.0,0.00014422,2]
[419840038,1775411438523,-150.0,0.00014429,2]
[419840039,1775411438532,-150.0,0.00014436,2]
[419840040,1775411438541,-195.70026466,0.0001444,2]
[419840041,1775411438551,-352.26047639,0.0001444,2]
[419840042,1775411438560,-403.25506538,0.0001444,2]
[419840043,1775411438569,-150.0,0.00014448,2]
[419840044,1775411438578,-150.0,0.00014453,2]
[419840045,1775411438588,-339.190921,0.00014454,7]
[419840046,1775411438598,-500.0,0.00014456,2]
[419840047,1775411438607,-500.0,0.00014456,2]
[419840048,1775411438616,-500.0,0.00014456,2]
[419840049,1775411438625,-573.05086874,0.00014456,2]
[419840050,1775411438634,-500.0,0.00014456,2]
[419840051,1775411438643,-500.0,0.00014456,2]
[419840052,1775411438652,-150.0,0.00014458,2]
[419840053,1775411438661,-150.0,0.00014462,2]
[419840054,1775411438670,-150.0,0.00014462,2]
[419840055,1775411438679,-150.0,0.00014471,2]
[419840056,1775411438689,-150.0,0.00014487,2]
[419840057,1775411438698,-150.0,0.00014489,2]
[419840058,1775411438707,-150.0,0.00014497,2]
[419840059,1775411438716,-8477.48344941,0.000145,2]
[419840060,1775411438725,-1619.684,0.00014504,2]
[419840061,1775411438735,-150.0,0.00014507,2]
[419840062,1775411438744,-420.0,0.00014507,2]
[419840063,1775411438753,-211.1558191,0.00014508,4]
[419840064,1775411438763,-150.0,0.00014514,2]
[419840065,1775411438772,-150.0,0.00014516,2]
[419840066,1775411438782,-500.0,0.00014521,2]
[419840067,1775411438791,-150.0,0.00014523,2]
[419840068,1775411438800,-150.0,0.00014523,2]
[419840069,1775411438810,-166.66,0.00014523,2]
[419840070,1775411438819,-150.0,0.00014524,2]
[419840071,1775411438827,-150.0,0.00014533,2]
[419840072,1775411438836,-486.65,0.00014538,2]
[419840073,1775411438845,-150.0,0.00014542,2]
[419840074,1775411438854,-150.0,0.00014545,2]
[419840075,1775411438864,-150.0,0.00014545,2]
[419840076,1775411438873,-1680.0,0.00014554,2]
[419840077,1775411438882,-150.0,0.0001456,2]
[419840078,1775411438891,-150.0,0.00014575,2]
[419840079,1775411438901,-150.0,0.00014578,2]
[419840080,1775411438910,-150.0,0.00014585,2]
[419840081,1775411438919,-150.0,0.00014585,2]
[419840082,1775411438928,-150.0,0.00014594,2]
[419840083,1775411438937,-150.0,0.00014596,2]
[419840084,1775411438947,-150.0,0.000146,2]
[419840085,1775411438956,-150.0,0.00014604,2]
[419840086,1775411438965,-150.0,0.00014613,2]
[419840087,1775411438975,-11910.1577215,0.00014622,2]
[419840088,1775411438984,-150.0,0.00014629,2]
[419840089,1775411438994,-150.0,0.00014631,2]
[419840090,1775411439003,-150.0,0.00014633,2]
[419840091,1775411439012,-500.0,0.00014638,2]
[419840092,1775411439021,-500.0,0.00014638,2]
[419840093,1775411439031,-500.0,0.00014638,2]
[419840094,1775411439040,-500.0,0.00014638,2]
[419840095,1775411439049,-500.0,0.00014638,2]
[419840096,1775411439058,-500.0,0.00014638,2]
[419840097,1775411439067,-500.0,0.00014638,2]
[419840098,1775411439076,-500.0,0.00014638,2]
[419840099,1775411439085,-500.0,0.00014638,2]
[419840100,1775411439094,-150.0,0.00014642,2]
[419840101,1775411439103,-150.0,0.00014646,2]
[419840102,1775411439112,-150.0,0.00014646,2]
[419840103,1775411439122,-150.0,0.00014649,2]
[419840104,1775411439132,-150.0,0.00014662,2]
[419840105,1775411439140,-150.0,0.00014667,2]
[419840106,1775411439150,-150.0,0.00014667,2]
[419840107,1775411439160,-150.0,0.00014684,2]
[419840108,1775411439170,-150.0,0.00014691,2]
[419840109,1775411439179,-150.0,0.00014691,2]
[419840110,1775411439189,-150.0,0.00014702,2]
[419840111,1775411439198,-150.0,0.00014708,2]
[419840112,1775411439208,-150.0,0.00014708,2]
[419840113,1775411439217,-150.0,0.0001472,2]
[419840114,1775411439226,-150.0,0.0001472,2]
[419840115,1775411439236,-8477.48344941,0.00014733,2]
[419840116,1775411439245,-150.0,0.00014738,2]
[419840117,1775411439254,-150.0,0.00014739,2]
[419840118,1775411439264,-150.0,0.00014743,2]
[419840119,1775411439273,-150.0,0.00014749,2]
[419840120,1775411439282,-2000.0,0.00014753,2]
[419840121,1775411439291,-150.0,0.00014756,2]
[419840122,1775411439301,-150.0,0.00014769,2]
[419840123,1775411439310,-150.0,0.00014769,2]
[419840124,1775411439320,-150.0,0.00014773,2]
[419840125,1775411439329,-150.0,0.00014778,2]
[419840127,1775411439339,-500.0,0.00014784,2]
[419840128,1775411439348,-500.0,0.00014784,7]
[419840129,1775411439357,-336.01,0.00014784,7]
[419840130,1775411439367,-331.4,0.00014784,2]
[419840131,1775411439376,-150.0,0.00014788,2]
[419840132,1775411439385,-150.0,0.00014791,2]
[419840133,1775411439396,-500.0,0.00014798,2]
[419840134,1775411439405,-500.0,0.00014798,7]
[419840135,1775411439414,-162.81,0.00014798,2]
[419840136,1775411439424,-500.0,0.00014799,2]
[419840137,1775411439433,-500.0,0.00014799,7]
[419840138,1775411439442,-172.02,0.00014799,7]
[419840139,1775411439451,-150.0,0.000148,2]
[419840140,1775411439461,-150.0,0.000148,2]
[419840141,1775411439470,-150.0,0.000148,2]
[419840142,1775411439479,-150.0,0.00014807,2]
[419840143,1775411439488,-150.0,0.00014809,2]
[419840144,1775411439497,-500.0,0.00014813,2]
[419840145,1775411439507,-500.0,0.00014813,7]
[419840146,1775411439516,-331.4,0.00014813,2]
[419840147,1775411439526,-500.0,0.00014814,2]
[419840148,1775411439535,-500.0,0.00014814,7]
[419840149,1775411439544,-336.01,0.00014814,7]
[419840150,1775411439556,-150.0,0.00014827,2]
[419840151,1775411439565,-150.0,0.00014831,2]
[419840152,1775411439574,-150.0,0.00014831,2]
[419840153,1775411439582,-150.0,0.00014836,2]
[419840154,1775411439592,-150.0,0.00014836,2]
[419840155,1775411439601,-150.0,0.00014844,2]
[419840156,1775411439610,-150.0,0.00014857,2]
[419840157,1775411439619,-150.0,0.00014862,2]
[419840158,1775411439628,-150.0,0.00014865,2]
[419840159,1775411439637,-11910.1577215,0.00014878,2]
[419840160,1775411439646,-150.0,0.0001488,2]
[419840161,1775411439655,-150.0,0.00014885,2]
[419840162,1775411439665,-150.0,0.00014892,2]
[419840163,1775411439674,-150.0,0.00014892,2]
[419840164,1775411439683,-150.0,0.00014895,2]
[419840168,1775411440032,-150.0,0.00014898,2]
[419840169,1775411440066,-150.0,0.00014916,2]
[419840170,1775411440076,-150.0,0.00014924,2]
[419840171,1775411440086,-150.0,0.00014933,2]
[419840172,1775411440095,-150.0,0.00014933,2]
[419840173,1775411440104,-150.0,0.00014933,2]
[419840174,1775411440114,-150.0,0.00014933,2]
[419840175,1775411440123,-150.0,0.00014951,2]
[419840176,1775411440132,-150.0,0.00014953,2]
[419840177,1775411440141,-150.0,0.00014954,2]
[419840178,1775411440150,-150.0,0.00014954,2]
[419840179,1775411440160,-500.0,0.00014959,2]
[419840180,1775411440169,-166.66,0.0001496,2]
[419840181,1775411440178,-8477.48344941,0.00014967,2]
[419840182,1775411440187,-150.0,0.00014969,2]
[419840183,1775411440196,-150.0,0.00014971,2]
[419840184,1775411440205,-150.0,0.00014982,2]
[419840185,1775411440214,-150.0,0.00014982,2]
[419840186,1775411440223,-150.0,0.00014987,2]
[419840187,1775411440232,-3004.07750266,0.00015,2]
[419840188,1775411440241,-300.0,0.00015,2]
[419840189,1775411440250,-150.0,0.00015,2]
[419840190,1775411440259,-150.0,0.00015004,2]
[419840191,1775411440268,-150.0,0.00015011,2]
[419840192,1775411440278,-150.0,0.00015015,2]
[419840193,1775411440287,-150.0,0.00015015,2]
[419840194,1775411440296,-2000.0,0.00015015,2]
[419840195,1775411440306,-532.40918815,0.00015015,2]
[419840196,1775411440315,-150.0,0.00015022,2]
[419840197,1775411440325,-255.0,0.00015025,2]
[419840198,1775411440334,-150.0,0.0001503,2]
[419840199,1775411440343,-150.0,0.0001504,2]
[419840200,1775411440352,-150.0,0.0001504,2]
[419840201,1775411440362,-150.0,0.00015058,2]
[419840202,1775411440371,-150.0,0.00015067,2]
[419840203,1775411440380,-800.96674089,0.00015068,2]
[419840204,1775411440390,-150.0,0.00015069,2]
[419840205,1775411440399,-150.0,0.00015076,2]
[419840206,1775411440408,-150.0,0.00015077,2]
[419840207,1775411440418,-150.0,0.00015077,2]
[419840208,1775411440427,-150.0,0.00015079,2]
[419840209,1775411440436,-150.0,0.00015086,2]
[419840210,1775411440445,-150.0,0.00015093,2]
[419840211,1775411440454,-150.0,0.00015098,2]
[419840212,1775411440464,-518.71,0.00015109,2]
[419840213,1775411440473,-150.0,0.00015111,2]